bitfinex-derivatives/quotes_ETHF0:USTF0_20241008
["timestamp","ask_amount","ask_price","bid_price","bid_amount"]
[1728410570360,0.40823,2450.7,2450.5,3.2]
[1728410570560,0.40823,2450.7,2450.6,0.40824]
[1728410570756,0.40823,2450.7,2450.5,3.60825]
[1728410570961,1.02047,2451.0,2450.6,0.40823]
[1728410570962,0.40822,2450.8,2450.6,0.40823]
[1728410571166,1.86197,2451.0,2450.6,0.40823]
[1728410571467,0.40823,2450.7,2450.5,3.60825]
[1728410571761,0.40822,2450.8,2450.6,0.40823]
[1728410572163,0.40823,2450.7,2450.5,3.2]
[1728410572358,0.40823,2450.7,2450.5,3.60825]
[1728410572964,0.40824,2450.7,2450.5,3.60825]
[1728410573165,0.40824,2450.7,2450.5,3.2]
[1728410573564,0.40824,2450.7,2450.5,3.60826]
[1728410574879,3.2078,2450.9,2450.3,3.2]
[1728410575082,0.40828,2450.4,2450.2,0.4083]
[1728410575274,4.22842,2450.6,2450.1,3.2]
[1728410575473,0.4083,2450.3,2450.1,3.2]
[1728410576080,0.6023,2450.9,2450.2,8.55558292]
[1728410576081,3.4148,2450.9,2450.2,8.55558292]
[1728410576274,0.8415,2451.0,2450.8,3.2]
[1728410576476,3.2078,2451.2,2451.0,0.40817]
[1728410576676,0.40816,2451.1,2450.9,0.40818]
[1728410576873,0.40816,2451.1,2451.0,3.2]
[1728410577074,3.2078,2451.2,2451.0,3.2]
[1728410577271,0.40816,2451.1,2451.0,3.2]
[1728410578085,1.02043,2451.1,2450.8,3.2]
[1728410578279,0.40823,2450.7,2450.6,3.2]
[1728410578475,4.22819,2451.2,2450.8,0.40821]
[1728410578780,0.40818,2451.0,2450.9,0.40819]
[1728410579184,0.40817,2451.1,2450.9,4.48818]
[1728410579385,3.2078,2451.2,2451.0,3.2]
[1728410579586,0.40816,2451.1,2451.0,3.60816]
[1728410579797,3.2078,2451.2,2451.0,3.2]
[1728410580080,0.40816,2451.1,2451.0,3.60817]
[1728410580279,0.40816,2451.1,2451.0,3.2]
[1728410580889,0.40816,2451.1,2451.0,3.60818]
[1728410581082,3.2078,2451.2,2451.0,7.28]
[1728410581279,3.2078,2451.2,2451.1,0.40816]
[1728410581483,3.61594,2451.2,2451.1,4.08]
[1728410581985,3.2078,2451.2,2451.0,3.2]
[1728410582181,0.40816,2451.1,2451.0,3.2]
[1728410582582,3.61595,2451.2,2451.1,0.40816]
[1728410582781,3.2078,2451.2,2451.0,3.2]
[1728410582977,3.61595,2451.2,2451.1,0.40816]
[1728410583182,3.2078,2451.2,2451.0,3.2]
[1728410583384,3.2078,2451.2,2451.1,4.48816]
[1728410583885,3.61594,2451.2,2451.1,4.48816]
[1728410584387,0.40816,2451.1,2451.0,3.2]
[1728410585284,0.40816,2451.1,2450.8,0.4038]
[1728410585488,0.40819,2451.0,2450.9,0.40819]
[1728410585886,0.40818,2451.0,2450.9,4.48818]
[1728410586591,3.6001,2451.2,2451.0,0.40816]
[1728410586891,4.00824,2451.2,2451.1,3.60816]
[1728410587085,4.00824,2451.2,2451.1,3.2]
[1728410587589,4.00824,2451.2,2450.9,3.60818]
[1728410587590,0.40818,2451.0,2450.9,3.60818]
[1728410588385,0.40818,2451.0,2450.9,3.2]
[1728410590087,3.6001,2451.2,2450.9,7.28]
[1728410590384,3.61595,2451.2,2451.1,3.60816]
[1728410590892,3.61595,2451.2,2451.1,3.2]
[1728410591687,0.40815,2451.2,2451.1,3.60816]
[1728410592493,4.62355,2451.5,2451.1,3.2]
[1728410592695,0.40812,2451.4,2451.3,0.40812]
[1728410593693,0.40814,2451.3,2451.2,0.40812]
[1728410593888,4.62357,2451.5,2451.1,3.2]
[1728410594098,1.02032,2451.4,2451.0,6.8336]
[1728410594392,0.40816,2451.2,2451.1,0.40815]
[1728410594593,0.40816,2451.1,2451.0,7.24177]
[1728410594990,16.4878,2451.1,2450.0,53.77986]
[1728410595192,0.40833,2450.1,2450.0,50.99566]
[1728410595500,0.40833,2450.1,2450.0,54.19566]
[1728410595992,1.22757,2450.8,2450.0,58.27726]
[1728410596192,1.02057,2450.8,2450.5,3.2]
[1728410596395,0.40823,2450.7,2450.5,3.60825]
[1728410596697,3.2078,2451.1,2450.6,4.0808]
[1728410596885,0.826,2452.0,2451.8,0.40804]
[1728410597086,3.15322713,2452.0,2451.9,6.8314]
[1728410597699,4.2276,2452.6,2451.9,12.8314]
[1728410597700,1.01982,2452.5,2451.9,12.8314]
[1728410597898,1.01982,2452.5,2452.2,3.2]
[1728410598099,0.40796,2452.3,2452.2,3.2]
[1728410598294,3.56118713,2452.3,2452.2,6.4078]
[1728410598593,1.01995,2452.2,2451.7,3.2078]
[1728410598797,3.56126713,2451.8,2451.7,3.2078]
[1728410599302,3.15322713,2451.8,2451.7,6.4078]
[1728410599598,3.56126713,2451.8,2451.7,6.4078]
[1728410599797,3.97726713,2451.8,2451.7,3.2078]
[1728410599993,0.40807,2451.7,2451.5,3.2]
[1728410600293,3.54242713,2451.6,2451.4,3.2078]
[1728410600501,0.79728,2451.6,2451.5,3.2]
[1728410600991,3.95050713,2451.6,2451.5,3.2]
[1728410601297,0.40811,2451.4,2451.3,3.2]
[1728410601492,3.56133713,2451.4,2451.3,3.2]
[1728410603497,3.56133713,2451.4,2451.1,3.2078]
[1728410603498,0.40814,2451.2,2451.1,3.2078]
[1728410603692,0.40817,2451.1,2451.0,0.40818]
[1728410603898,3.15322713,2451.0,2450.9,3.60818]
[1728410604091,3.56140713,2451.0,2450.9,3.2]
[1728410605002,0.40819,2450.9,2450.8,3.2078]
[1728410605203,3.95051713,2450.9,2450.8,3.2078]
[1728410605898,3.2078,2452.6,2450.9,4.08]
[1728410606102,0.5941,2452.4,2452.0,3.2]
[1728410606402,0.79705,2452.4,2452.3,3.2]
[1728410606601,0.3891,2452.4,2452.3,3.2]
[1728410606801,3.54232713,2452.4,2452.3,3.2]
[1728410607003,3.95026713,2452.4,2452.3,3.2]
[1728410607198,3.95026713,2452.4,2452.1,6.81579]
[1728410607504,3.15322713,2452.2,2452.1,6.81579]
[1728410608199,3.15322713,2452.2,2452.1,3.2078]
[1728410608597,3.56120713,2452.2,2452.1,3.2078]
[1728410609397,0.40803,2451.9,2451.8,3.2]
[1728410609597,3.15322713,2451.9,2451.8,3.60804]
[1728410609792,3.56125713,2451.9,2451.8,3.2]
[1728410610000,0.40804,2451.8,2451.7,3.2078]
[1728410610202,3.96126713,2451.8,2451.7,3.2078]
[1728410610600,3.55322713,2451.8,2451.4,6.4078]
[1728410610798,3.55322713,2451.8,2451.4,6.8159]
[1728410610799,1.42013,2451.8,2451.4,6.8159]
[1728410611099,3.15322713,2451.5,2451.4,6.8159]
[1728410611298,3.56131713,2451.5,2451.4,6.8159]
[1728410611494,3.15322713,2451.5,2451.4,6.8159]
[1728410612605,3.15322713,2451.5,2451.4,3.6159]
[1728410612905,3.56131713,2451.5,2451.4,3.2078]
[1728410613096,0.20728679,2453.4,2451.4,13.287]
[1728410613304,0.61294,2452.5,2452.3,0.40795]
[1728410613508,0.40794,2452.4,2452.3,0.40796]
[1728410613805,3.15322713,2452.4,2452.3,0.40796]
[1728410614504,3.15322713,2452.4,2452.2,3.61577]
[1728410614702,0.4126,2452.6,2452.2,3.61577]
[1728410614703,3.15322713,2452.3,2452.2,3.61578]
[1728410618804,3.15322713,2452.3,2452.2,3.2078]
[1728410619010,3.15322713,2452.3,2452.2,3.61578]
[1728410622315,3.15322713,2452.3,2452.2,3.2078]
[1728410622515,3.56118713,2452.3,2452.2,3.2078]
[1728410622807,3.15322713,2452.3,2452.2,3.61578]
[1728410623207,3.56118713,2452.3,2452.2,0.40798]
[1728410623407,3.56118713,2452.3,2452.0,3.92]
[1728410623612,3.15322713,2452.1,2452.0,4.32801]
[1728410627221,0.40789,2452.8,2452.6,0.4079]
[1728410627415,3.15322713,2452.7,2452.6,3.92]
[1728410627617,3.15322713,2452.7,2452.6,4.32789]
[1728410627811,0.3991,2453.2,2452.6,4.32789]
[1728410627812,3.2078,2453.4,2452.6,9.92]
[1728410628013,0.8376,2453.7,2453.2,7.1278]
[1728410628223,0.40779,2453.3,2453.2,7.1278]
[1728410628516,0.40779,2453.3,2453.2,7.53561]
[1728410628517,3.15322713,2453.3,2453.2,7.53561]
[1728410629311,0.8024,2454.2,2453.2,21.72771777]
[1728410629518,2.50872713,2453.7,2453.6,4.32774]
[1728410629817,2.91645713,2453.7,2453.6,3.92]
[1728410630015,2.50872713,2453.7,2453.4,3.92]
[1728410630214,2.50872713,2453.7,2453.6,7.53554]
[1728410630410,0.8024,2454.3,2453.6,13.1278]
[1728410630613,0.40765,2454.2,2454.0,7.1278]
[1728410630915,0.8024,2454.3,2454.0,7.1278]
[1728410631110,2.91638713,2454.1,2454.0,7.1278]
[1728410631315,0.4077,2453.9,2453.7,7.1278]
[1728410631511,0.40771,2453.8,2453.7,7.1278]
[1728410631717,2.91643713,2453.8,2453.7,7.1278]
[1728410632614,3.2078,2454.9,2453.7,11.203]
[1728410632821,0.40758,2454.6,2454.5,3.92]
[1728410633112,1.01876,2455.1,2454.5,3.92]
[1728410633113,0.205,2455.7,2455.5,0.40742]
[1728410633414,3.2078,2456.8,2455.6,7.1278]
[1728410633415,0.9355406,2456.8,2455.6,7.1278]
[1728410633719,3.2078,2456.0,2455.4,3.2078]
[1728410634017,0.207,2456.8,2455.4,3.2078]
[1728410634018,0.40716,2457.2,2456.5,0.40725]
[1728410634218,1.01775,2457.5,2456.8,3.2078]
[1728410634428,1.42496,2457.3,2456.5,3.2078]
[1728410634716,3.2078,2456.7,2455.9,3.2078]
[1728410634921,3.92,2457.0,2455.7,3.2078]
[1728410634922,0.40738,2455.8,2455.7,3.2078]
[1728410635318,4.4225,2456.6,2455.7,3.2078]
[1728410635520,0.40738,2455.9,2455.7,3.2078]
[1728410635722,0.40737,2455.9,2455.7,3.2078]
[1728410635926,3.2078,2456.3,2455.4,3.2078]
[1728410636221,0.40735,2456.0,2455.4,3.61524]
[1728410636719,0.40736,2456.0,2455.7,3.2078]
[1728410637020,3.2078,2456.3,2455.7,3.2078]
[1728410637430,0.40732,2456.2,2455.7,3.2078]
[1728410637920,0.40732,2456.2,2455.7,3.61519]
[1728410638223,3.61511,2456.3,2455.8,0.40737]
[1728410638517,3.61511,2456.3,2455.7,3.2078]
[1728410638518,0.40732,2456.2,2455.7,3.2078]
[1728410638721,0.4073,2456.3,2456.0,3.2078]
[1728410638916,1.2147,2456.6,2456.0,3.2078]
[1728410639125,0.40729,2456.4,2456.3,3.2078]
[1728410639623,6.56274,2457.1,2456.3,3.2078]
[1728410639817,0.205,2458.2,2456.3,3.2078]
[1728410639818,44.0078,2457.2,2456.3,3.2078]
[1728410640022,0.40728,2456.4,2456.3,3.2078]
[1728410640525,4.0712,2456.4,2456.3,3.2078]
[1728410640720,0.40728,2456.4,2456.3,3.2078]
[1728410640929,4.0712,2456.4,2456.0,3.2078]
[1728410641122,0.40734,2456.1,2456.0,3.2078]
[1728410641627,10.47854,2456.1,2456.0,3.2078]
[1728410641826,10.0712,2456.1,2455.7,3.2078]
[1728410642120,0.40738,2455.8,2455.7,3.2078]
[1728410642316,4.072,2455.8,2455.4,3.2078]
[1728410642514,0.40743,2455.5,2455.4,3.2078]
[1728410643023,0.40752,2455.0,2454.9,3.2078]
[1728410643323,1.01864,2455.4,2454.9,3.2078]
[1728410643324,0.40749,2455.2,2454.9,3.2078]
[1728410643525,3.2078,2456.5,2455.0,4.0728]
[1728410643724,0.40726,2456.5,2456.4,3.2078]
[1728410643922,0.40731,2456.2,2456.1,3.2078]
[1728410644116,1.01812,2456.6,2456.1,3.2078]
[1728410644319,0.40731,2456.3,2456.1,3.2078]
[1728410644514,0.40731,2456.2,2456.1,3.2078]
[1728410644928,0.4013,2456.9,2456.1,3.2078]
[1728410645226,1.01812,2456.6,2456.1,3.2078]
[1728410645427,3.2078,2456.7,2456.1,3.2078]
[1728410645615,0.4013,2456.9,2456.1,3.2078]
[1728410645817,0.40723,2456.7,2456.4,3.2078]
[1728410646021,0.40727,2456.5,2456.1,3.61513]
[1728410646222,0.40727,2456.5,2456.1,3.2078]
[1728410646432,0.4013,2456.9,2456.1,3.2078]
[1728410646619,0.40727,2456.5,2456.1,3.2078]
[1728410646818,0.40725,2456.6,2456.2,0.4073]
[1728410647029,0.40724,2456.7,2456.3,0.40729]
[1728410647222,0.4013,2456.9,2456.4,3.2078]
[1728410647427,1.4193,2456.9,2456.1,3.2078]
[1728410647626,0.4073,2456.3,2456.1,3.2078]
[1728410648224,3.2078,2456.7,2456.1,3.2078]
[1728410648527,0.40737,2455.9,2455.8,3.2078]
[1728410648722,4.0712,2456.8,2455.4,4.125]
[1728410648723,3.2078,2456.4,2455.5,3.2078]
[1728410648918,1.01841,2456.0,2455.5,3.2078]
[1728410649126,0.40741,2455.6,2455.5,3.2078]
[1728410649624,4.48021,2455.6,2455.5,3.2078]
[1728410649824,0.40746,2455.3,2455.2,3.2078]
[1728410650027,0.40745,2455.4,2455.2,3.2078]
[1728410650227,1.01847,2455.8,2455.2,3.2078]
[1728410650425,0.40743,2455.6,2455.2,3.61528]
[1728410650728,0.40745,2455.4,2455.2,3.2078]
[1728410650930,1.01847,2455.8,2455.2,3.2078]
[1728410650931,0.40742,2455.6,2455.3,0.40746]
[1728410651232,3.2078,2455.9,2455.2,3.2078]
[1728410651427,0.40743,2455.5,2455.2,3.61527]
[1728410651826,1.01842,2455.9,2455.2,3.61527]
[1728410652029,40.8,2456.0,2455.2,3.2078]
[1728410652224,0.40745,2455.4,2455.2,3.2078]
[1728410652828,0.40743,2455.5,2455.2,3.61528]
[1728410653025,0.40745,2455.4,2455.2,3.2078]
[1728410653224,0.40746,2455.3,2455.2,3.2078]
[1728410653625,10.0728,2455.3,2454.7,3.2078]
[1728410653934,1.84583,2455.2,2454.7,3.2078]
[1728410654334,0.40754,2454.8,2454.7,3.2078]
[1728410655634,0.40756,2454.7,2454.6,50.51538]
[1728410656033,4.48116,2454.7,2454.6,50.51538]
[1728410656232,13.68896,2454.7,2454.6,50.51538]
[1728410657031,10.48116,2454.7,2454.6,50.51538]
[1728410657238,13.68896,2454.7,2454.6,50.51538]
[1728410657426,13.68896,2454.7,2454.6,48.14337]
[1728410657625,13.68896,2454.7,2454.6,47.2718]
[1728410657833,13.68896,2454.7,2454.6,46.42623]
[1728410657834,7.68896,2454.7,2454.6,46.42623]
[1728410658039,4.48116,2454.7,2454.6,46.42623]
[1728410658943,10.48116,2454.7,2454.6,46.42623]
[1728410659134,13.68896,2454.7,2454.6,46.42623]
[1728410659440,13.68896,2454.7,2454.6,45.53362]
[1728410659642,13.68896,2454.7,2454.6,44.65938]
[1728410659943,4.48116,2454.7,2454.6,44.65938]
[1728410660136,7.68896,2454.7,2454.6,44.65938]
[1728410660342,13.68896,2454.7,2454.6,44.65938]
[1728410660638,7.2521,2455.2,2454.6,44.65938]
[1728410660639,0.8271,2455.2,2454.6,44.65938]
[1728410660935,0.40756,2454.7,2454.6,44.65938]
[1728410661129,4.0349,2455.2,2454.6,44.65938]
[1728410661331,0.40756,2454.7,2454.6,44.65938]
[1728410661537,1.01874,2455.1,2454.6,44.65938]
[1728410661835,0.40756,2454.7,2454.6,44.65938]
[1728410662237,1.01874,2455.1,2454.6,44.65938]
[1728410662439,0.40755,2454.8,2454.6,45.06696]
[1728410662628,0.40756,2454.7,2454.6,44.65938]
[1728410664037,4.2263,2455.7,2454.6,54.73298]
[1728410664239,0.40747,2455.3,2454.9,3.2078]
[1728410664441,1.0185,2455.7,2455.3,0.40745]
[1728410664736,0.40744,2455.5,2455.3,0.40745]
[1728410664939,0.4074,2455.7,2455.6,0.40741]
[1728410665239,0.4074,2455.7,2455.3,3.2078]
[1728410665240,0.40742,2455.6,2455.3,3.2078]
[1728410665841,0.40742,2455.6,2455.4,0.40744]
[1728410666542,1.01851,2455.7,2455.3,3.2078]
[1728410666739,0.40744,2455.5,2455.3,3.61526]
[1728410667142,1.01851,2455.7,2455.3,3.2078]
[1728410667343,0.40744,2455.4,2455.3,3.2078]
[1728410668545,1.01842,2455.9,2455.3,3.61525]
[1728410668840,0.40744,2455.4,2455.3,3.2078]
[1728410669038,0.8508,2456.0,2454.9,3.2078]
[1728410669039,0.40751,2455.0,2454.9,3.2078]
[1728410670139,4.48111,2455.0,2454.9,3.2078]
[1728410672145,0.40751,2455.0,2454.9,3.2078]
[1728410674655,4.48111,2455.0,2454.9,3.2078]
[1728410675746,4.0736,2455.0,2454.6,47.86718]
[1728410676061,0.40756,2454.7,2454.6,47.86718]
[1728410678358,0.40756,2454.7,2454.6,48.27476]
[1728410678656,0.40756,2454.7,2454.6,47.86718]
[1728410680551,0.40756,2454.7,2454.6,44.65938]
[1728410680755,4.48116,2454.7,2454.6,44.65938]
[1728410681550,10.87536,2454.7,2454.6,42.25025]
[1728410681757,14.79536,2454.7,2454.6,39.15582]
[1728410681952,14.79536,2454.7,2454.6,36.11996]
[1728410682152,14.79536,2454.7,2454.6,34.78098]
[1728410682353,14.79536,2454.7,2454.6,33.22489]
[1728410682555,14.79536,2454.7,2454.6,29.9688]
[1728410682757,14.79536,2454.7,2454.6,28.41059]
[1728410683250,14.79536,2454.7,2454.6,23.92402]
[1728410683450,14.79536,2454.7,2454.6,20.13731]
[1728410683655,14.79536,2454.7,2454.6,18.29111]
[1728410684254,14.79536,2454.7,2454.6,15.54294]
[1728410684452,14.79536,2454.7,2454.6,13.99326]
[1728410685461,14.79536,2454.7,2454.6,12.25739]
[1728410685857,14.79536,2454.7,2454.6,9.77334]
[1728410686257,14.79536,2454.7,2454.6,8.31112]
[1728410686456,14.79536,2454.7,2454.6,7.06273]
[1728410686765,55.59536,2454.7,2454.6,4.84386]
[1728410686953,55.59536,2454.7,2454.6,2.85294]
[1728410687160,55.59536,2454.7,2454.6,1.57773]
[1728410688064,55.1878,2454.7,2453.7,3.4128]
[1728410688359,0.40771,2453.8,2453.7,3.61553]
[1728410688759,1.0191,2454.3,2453.7,3.2078]
[1728410688954,0.40769,2454.0,2453.9,0.40769]
[1728410689565,0.40769,2453.9,2453.8,0.80131]
[1728410690065,0.40769,2453.9,2453.8,0.3936]
[1728410690566,3.42995,2454.6,2453.8,0.3936]
[1728410690567,3.2078,2455.5,2453.8,24.76478063]
[1728410690766,0.40739,2455.7,2455.5,0.40742]
[1728410690963,0.40735,2456.0,2455.6,0.4074]
[1728410691164,0.3957,2456.2,2455.9,0.40736]
[1728410691463,0.3957,2456.2,2455.7,3.2078]
[1728410691658,0.40726,2456.6,2456.1,3.2078]
[1728410692263,0.40727,2456.5,2456.1,3.2078]
[1728410692568,0.40726,2456.6,2456.1,3.2078]
[1728410692864,0.40727,2456.5,2456.1,3.2078]
[1728410695158,0.40724,2456.6,2456.1,3.2078]
[1728410695363,0.4161,2456.7,2456.1,3.2078]
[1728410695863,0.40727,2456.5,2456.1,3.2078]
[1728410696169,0.40728,2456.4,2456.1,3.2078]
[1728410696369,0.40727,2456.5,2456.1,3.61512]
[1728410696565,4.22596,2456.6,2456.1,3.2078]
[1728410697072,0.4073,2456.3,2456.1,3.2078]
[1728410697668,3.2078,2456.6,2456.1,3.2078]
[1728410697865,3.2078,2456.2,2455.4,0.205]
[1728410698071,3.92,2456.3,2455.3,0.40745]
[1728410698072,3.2078,2455.6,2455.3,0.40745]
[1728410698275,3.2078,2455.6,2454.9,3.2078]
[1728410698463,0.40744,2455.5,2455.1,0.40749]
[1728410698664,0.40746,2455.3,2455.0,0.4075]
[1728410698969,3.2078,2455.6,2455.0,0.4075]
[1728410698970,0.40745,2455.4,2455.0,0.4075]
[1728410699167,0.40746,2455.3,2455.0,0.4075]
[1728410699369,44.0078,2455.6,2454.9,0.40752]
[1728410699566,0.4075,2455.1,2454.6,3.6268]
[1728410699770,1.01864,2455.4,2454.8,0.40754]
[1728410699969,44.0078,2455.6,2454.6,3.6268]
[1728410700268,3.6274,2455.3,2454.6,3.2078]
[1728410700461,1.01874,2455.1,2454.6,3.2078]
[1728410700661,0.40753,2455.0,2454.7,0.40755]
[1728410700867,0.40754,2454.9,2454.6,3.61536]
[1728410701067,1.01874,2455.1,2454.6,3.2078]
[1728410701267,0.40755,2454.8,2454.3,3.2078]
[1728410701573,0.40748,2455.2,2454.3,3.61541]
[1728410701774,0.40759,2454.6,2454.4,0.40761]
[1728410702168,0.40759,2454.6,2454.0,0.4076]
[1728410702169,4.0744,2454.6,2453.9,3.2078]
[1728410702371,4.22671,2454.7,2454.2,3.61544]
[1728410702670,2.322,2454.8,2454.2,3.2078]
[1728410703068,2.72955,2454.8,2454.6,0.40757]
[1728410703273,2.72956,2454.8,2454.6,0.40757]
[1728410703474,2.322,2454.8,2454.2,3.2078]
[1728410703670,2.322,2454.8,2454.2,4.22689]
[1728410703871,2.322,2454.8,2454.7,0.40756]
[1728410704776,2.322,2454.8,2454.5,3.2078]
[1728410705171,2.322,2454.8,2454.7,0.40756]
[1728410706573,2.72955,2454.8,2454.6,0.40757]
[1728410707077,2.72955,2454.8,2454.7,0.40756]
[1728410707578,2.322,2454.8,2454.7,0.40756]
[1728410707876,0.4196,2455.3,2454.5,3.2078]
[1728410708176,0.4196,2455.3,2454.8,3.2078]
[1728410708371,3.6274,2455.3,2454.9,0.40751]
[1728410708575,3.6274,2455.3,2454.8,3.2078]
[1728410708882,0.4196,2455.3,2455.2,0.40748]
[1728410709179,0.40743,2455.5,2455.4,0.40744]
[1728410709379,0.40746,2455.4,2455.2,0.40747]
[1728410709581,4.0728,2455.3,2455.1,3.2078]
[1728410709780,0.40746,2455.4,2455.1,3.2078]
[1728410709982,2.72941,2455.7,2455.5,0.40742]
[1728410710281,0.40742,2455.6,2455.5,0.40743]
[1728410710582,2.322,2455.7,2455.1,4.22653]
[1728410710583,2.322,2455.7,2455.6,0.40741]
[1728410711181,14.41814,2456.1,2455.4,7.1278]
[1728410711182,3.2078,2456.1,2455.4,7.1278]
[1728410711370,0.8115,2456.5,2455.7,3.2078]
[1728410711684,0.40732,2456.2,2456.0,0.40733]
[1728410711982,0.40725,2456.6,2456.5,0.40726]
[1728410712279,1.01793,2457.1,2456.3,4.22601]
[1728410712476,0.4153,2457.2,2456.6,3.2078]
[1728410712675,0.40719,2457.0,2456.8,0.40721]
[1728410712876,0.40718,2457.0,2456.8,0.4072]
[1728410713073,0.4153,2457.2,2456.7,0.40722]
[1728410713074,0.40721,2456.9,2456.7,0.40722]
[1728410713274,0.40722,2456.8,2456.6,3.61503]
[1728410713671,1.01795,2457.0,2456.6,3.61503]
[1728410713873,0.40722,2456.8,2456.6,3.61503]
[1728410714176,1.4332,2457.2,2456.6,3.2078]
[1728410714481,0.4072,2456.9,2456.7,0.40721]
[1728410714674,0.40722,2456.8,2456.6,3.61503]
[1728410714876,2.321,2457.3,2456.6,3.2078]
[1728410715075,0.40721,2456.9,2456.7,0.40722]
[1728410715382,0.40722,2456.8,2456.6,3.61504]
[1728410715774,1.01795,2457.1,2456.6,3.2078]
[1728410716076,0.40721,2456.9,2456.8,0.40721]
[1728410716479,0.40721,2456.9,2456.6,3.2078]
[1728410716678,0.40716,2457.1,2456.7,0.40722]
[1728410716874,0.4072,2456.9,2456.7,0.40722]
[1728410717380,1.01789,2457.2,2456.6,3.2078]
[1728410717582,0.4072,2456.9,2456.7,0.40722]
[1728410717777,1.01791,2457.1,2456.6,3.2078]
[1728410718081,2.321,2457.3,2456.6,3.2078]
[1728410718277,0.40721,2456.9,2456.7,0.40723]
[1728410718484,0.40722,2456.8,2456.6,3.61504]
[1728410719287,0.4072,2456.9,2456.7,0.40722]
[1728410719583,0.40721,2456.9,2456.8,0.40721]
[1728410720183,0.4072,2456.9,2456.7,0.40722]
[1728410720384,0.40721,2456.9,2456.7,0.40722]
[1728410720592,0.40722,2456.8,2456.6,3.61503]
[1728410720785,0.4072,2456.9,2456.7,0.40722]
[1728410720982,3.33883,2457.3,2456.7,0.40722]
[1728410721288,0.40718,2457.0,2456.9,3.2078]
[1728410721683,0.40723,2456.7,2456.6,3.2078]
[1728410721883,0.40723,2456.7,2456.2,0.205]
[1728410721884,6.0,2456.7,2456.2,3.2078]
[1728410722180,4.0704,2456.7,2456.2,3.2078]
[1728410722479,0.40734,2456.0,2455.9,3.2078]
[1728410723381,0.40734,2456.0,2455.7,0.421]
[1728410723382,0.40739,2455.7,2455.6,3.2078]
[1728410723575,0.40747,2455.3,2455.2,3.2078]
[1728410723984,0.40747,2455.3,2455.2,3.5336]
[1728410724584,0.40747,2455.3,2455.2,0.3258]
[1728410724886,10.48027,2455.3,2455.2,0.3258]
[1728410725085,10.0728,2455.3,2454.5,3.2078]
[1728410725282,7.1278,2455.4,2454.5,3.2078]
[1728410725283,1.01879,2455.0,2454.5,3.61538]
[1728410725585,0.40753,2454.9,2454.6,0.40758]
[1728410725885,0.40756,2454.8,2454.5,3.61539]
[1728410726079,4.22646,2455.3,2454.5,3.61539]
[1728410726286,0.40751,2455.0,2454.6,0.40757]
[1728410726485,0.40756,2454.8,2454.5,3.61539]
[1728410726785,4.22646,2455.3,2454.5,3.2078]
[1728410727085,0.40753,2455.0,2454.7,0.40756]
[1728410727286,4.22646,2455.3,2454.7,0.40756]
[1728410727485,0.40753,2454.9,2454.7,0.40756]
[1728410727679,0.4075,2455.1,2454.8,3.61533]
[1728410727880,3.6252,2455.9,2454.8,3.2078]
[1728410728081,0.40743,2455.5,2455.3,0.40746]
[1728410728282,0.40743,2455.5,2455.2,3.2078]
[1728410728587,0.40743,2455.5,2455.2,3.61527]
[1728410728782,0.40745,2455.4,2455.2,3.2078]
[1728410728984,0.40746,2455.3,2455.2,3.2078]
[1728410729380,4.0728,2455.3,2454.8,3.6245]
[1728410729586,0.40752,2455.0,2454.8,3.6245]
[1728410729886,0.40753,2454.9,2454.8,3.2078]
[1728410730485,0.40758,2454.6,2454.5,4.286]
[1728410730888,0.40756,2454.8,2454.5,4.286]
[1728410731192,3.2078,2455.4,2454.5,4.286]
[1728410731390,0.40757,2454.7,2454.5,4.6119]
[1728410731781,0.40753,2454.9,2454.5,4.6119]
[1728410731985,3.2078,2455.5,2454.5,4.6119]
[1728410732191,0.40756,2454.8,2454.5,5.01948]
[1728410732599,1.01877,2455.1,2454.5,5.01948]
[1728410732885,0.40756,2454.7,2454.5,5.28078]
[1728410733192,1.01877,2455.1,2454.6,0.40758]
[1728410733393,6.48336,2455.6,2454.8,3.2078]
[1728410733691,5.4648,2455.6,2455.1,3.2078]
[1728410733887,1.01858,2455.5,2455.1,3.2078]
[1728410734088,0.40745,2455.4,2455.1,3.61528]
[1728410734286,5.4648,2455.6,2455.1,3.61528]
[1728410734590,0.40745,2455.4,2455.1,3.61528]
[1728410734782,0.40747,2455.3,2455.1,3.61528]
[1728410735691,3.2078,2455.6,2455.2,4.0728]
[1728410735888,0.40745,2455.4,2455.2,0.40747]
[1728410736490,0.3909,2455.8,2455.1,3.61529]
[1728410736491,0.40746,2455.3,2455.1,3.61529]
[1728410736989,1.01853,2455.6,2455.1,3.61529]
[1728410737189,0.40747,2455.3,2455.1,3.61529]
[1728410737394,0.40747,2455.3,2455.1,3.2078]
[1728410737895,1.01853,2455.6,2455.1,3.2078]
[1728410738097,0.40748,2455.2,2455.1,3.2078]
[1728410738490,0.40746,2455.4,2455.2,0.40748]
[1728410739092,0.40746,2455.4,2455.1,3.2078]
[1728410739294,0.40746,2455.4,2455.2,0.40748]
[1728410739900,1.01852,2455.7,2455.1,3.2078]
[1728410740100,0.40746,2455.4,2455.2,0.40748]
[1728410740495,1.01857,2455.6,2455.1,3.2078]
[1728410740696,0.40747,2455.3,2455.1,3.61528]
[1728410741298,1.01857,2455.6,2455.1,3.2078]
[1728410741494,0.40748,2455.2,2455.1,3.2078]
[1728410742299,0.40747,2455.3,2455.1,3.2078]